fUSD/lending_fUSD_20240409
["ID","MTS","AMOUNT","RATE_DAILY","PERIOD"]
[321988371,1712674267149,-511.14,0.00020195,2]
[321988372,1712674267166,-1246.15,0.00020195,2]
[321988373,1712674267178,-500.0,0.00020195,2]
[321988374,1712674267191,-1047.27,0.00020195,2]
[321988375,1712674267205,-500.0,0.00020195,2]
[321988376,1712674267215,-744.01,0.00020195,2]
[321988377,1712674267226,-500.0,0.00020195,2]
[321988378,1712674267238,-549.49,0.00020195,2]
[321988379,1712674267248,-518.48,0.00020195,2]
[321988380,1712674267258,-500.0,0.00020195,2]
[321988381,1712674267268,-500.0,0.00020195,2]
[321988382,1712674267277,-928.24,0.00020196,2]
[321988383,1712674267287,-500.0,0.00020196,2]
[321988384,1712674267297,-500.0,0.00020196,2]
[321988385,1712674267309,-839.67,0.00020196,2]
[321988386,1712674267318,-807.44,0.00020196,2]
[321988387,1712674267328,-500.0,0.00020196,2]
[321988388,1712674267341,-500.0,0.00020196,2]
[321988389,1712674267351,-839.96,0.00020196,2]
[321988390,1712674267361,-782.38,0.00020196,2]
[321988391,1712674267384,-500.0,0.00020196,2]
[321988392,1712674267398,-500.0,0.00020196,2]
[321988393,1712674267412,-710.19,0.00020196,2]
[321988394,1712674267423,-998.01,0.00020196,2]
[321988395,1712674267433,-799.18,0.00020196,2]
[321988396,1712674267443,-1217.46,0.00020196,2]
[321988397,1712674267454,-191.23010852,0.00020203,2]
[321988398,1712674267463,-240.90450357,0.00020265,2]
[321988399,1712674267473,-18477.85417236,0.00020266,2]
[321988400,1712674267485,-1182.45,0.00020273,2]
[321988401,1712674267495,-1818.84,0.00020273,2]
[321988402,1712674267505,-2025.12,0.00020273,2]
[321988403,1712674267515,-595.89,0.00020273,2]
[321988404,1712674267525,-1712.57,0.00020273,2]
[321988405,1712674267535,-1460.5,0.00020273,2]
[321988406,1712674267546,-2288.52,0.00020273,2]
[321988407,1712674267555,-1415.21,0.00020273,2]
[321988408,1712674267565,-4505.73,0.00020273,2]
[321988409,1712674267576,-2286.59,0.00020273,2]
[321988410,1712674267586,-11951.03,0.00020273,2]
[321988411,1712674267597,-1103.96,0.00020273,2]
[321988412,1712674267608,-2504.4,0.00020273,2]
[321988413,1712674267618,-3610.9,0.00020273,2]
[321988414,1712674267628,-1259.35,0.00020273,2]
[321988415,1712674267639,-3315.94,0.00020273,2]
[321988416,1712674267649,-1780.88,0.00020273,2]
[321988417,1712674267660,-1616.26,0.00020273,2]
[321988418,1712674267670,-1393.67,0.00020273,2]
[321988419,1712674267681,-500.0,0.00020273,2]
[321988420,1712674267693,-2797.41,0.00020273,2]
[321988421,1712674267703,-500.0,0.00020273,2]
[321988422,1712674267715,-1456.23,0.00020273,2]
[321988423,1712674267727,-554.83,0.00020282,2]
[321988424,1712674267743,-3367.0,0.000203,2]
[321988425,1712674267754,-538.9439669,0.00020319,2]
[321988426,1712674267765,-325.84537089,0.00020321,2]
[321988427,1712674267776,-500.0,0.00020365,2]
[321988428,1712674267788,-500.0,0.00020365,2]
[321988429,1712674267799,-500.0,0.00020365,2]
[321988430,1712674267810,-500.0,0.00020365,2]
[321988431,1712674267821,-500.0,0.00020365,2]
[321988432,1712674267831,-500.0,0.00020365,2]
[321988433,1712674267842,-500.0,0.00020365,2]
[321988434,1712674267853,-874.36,0.00020365,2]
[321988435,1712674267864,-691.8,0.00020365,2]
[321988436,1712674267874,-500.0,0.00020365,2]
[321988437,1712674267886,-500.0,0.00020365,2]
[321988438,1712674267900,-500.0,0.00020365,2]
[321988439,1712674267914,-500.0,0.00020365,2]
[321988440,1712674267927,-500.0,0.00020365,2]
[321988441,1712674267939,-500.0,0.00020365,2]
[321988442,1712674267950,-6036.2,0.00020365,2]
[321988443,1712674267964,-500.0,0.00020365,2]
[321988444,1712674267975,-3378.52,0.00020365,2]
[321988445,1712674267993,-500.0,0.00020365,2]
[321988446,1712674268005,-3763.34,0.00020365,2]
[321988447,1712674268017,-348.46865459,0.00020365,2]
[321988448,1712674268028,-937.12,0.00020365,2]
[321988449,1712674268039,-500.0,0.00020365,2]
[321988450,1712674268049,-1090.12,0.00020365,2]
[321988451,1712674268060,-1263.08,0.00020365,2]
[321988452,1712674268070,-500.0,0.00020365,2]
[321988453,1712674268080,-500.0,0.00020365,2]
[321988454,1712674268090,-1861.21,0.00020365,2]
[321988455,1712674268100,-500.0,0.00020365,2]
[321988456,1712674268109,-1623.73,0.00020365,2]
[321988457,1712674268119,-500.0,0.00020365,2]
[321988458,1712674268128,-32582.93,0.00020365,2]
[321988459,1712674268138,-500.0,0.00020365,2]
[321988460,1712674268148,-500.0,0.00020365,2]
[321988461,1712674268158,-1532.52,0.00020365,2]
[321988462,1712674268168,-500.0,0.00020365,2]
[321988463,1712674268178,-2758.67,0.00020365,2]
[321988464,1712674268188,-3284.97,0.00020365,2]
[321988465,1712674268197,-500.0,0.00020365,2]
[321988466,1712674268207,-500.0,0.00020365,2]
[321988467,1712674268217,-2962.97,0.00020365,2]
[321988468,1712674268227,-150.0,0.00020365,2]
[321988469,1712674268241,-500.0,0.00020365,2]
[321988470,1712674268250,-500.0,0.00020365,2]
[321988471,1712674268260,-500.0,0.00020365,2]
[321988472,1712674268270,-1957.1,0.00020365,2]
[321988473,1712674268280,-500.0,0.00020365,2]
[321988474,1712674268289,-9806.85,0.00020365,2]
[321988475,1712674268300,-2135.89,0.00020365,2]
[321988476,1712674268310,-500.0,0.00020365,2]
[321988477,1712674268319,-500.0,0.00020365,2]
[321988478,1712674268328,-500.0,0.00020365,2]
[321988479,1712674268338,-1797.01,0.00020365,2]
[321988480,1712674268347,-4410.97,0.00020365,2]
[321988481,1712674268357,-1170.81,0.00020365,2]
[321988482,1712674268366,-500.0,0.00020365,2]
[321988483,1712674268376,-2049.05,0.00020365,2]
[321988484,1712674268386,-1553.38,0.00020365,2]
[321988485,1712674268396,-500.0,0.00020365,2]
[321988486,1712674268406,-4210.12,0.00020365,2]
[321988487,1712674268416,-578.69,0.00020365,2]
[321988488,1712674268426,-3769.19,0.00020365,2]
[321988489,1712674268436,-493.15557423,0.00020365,2]
[321988490,1712674268446,-500.0,0.00020365,2]
[321988491,1712674268456,-500.0,0.00020365,2]
[321988492,1712674268672,-500.0,0.00020365,2]
[321988493,1712674268683,-500.0,0.00020365,2]
[321988494,1712674268693,-500.0,0.00020367,2]
[321988495,1712674268704,-500.0,0.00020367,2]
[321988496,1712674268714,-500.0,0.00020367,2]
[321988497,1712674268724,-500.0,0.00020367,2]
[321988498,1712674268739,-500.0,0.00020367,2]
[321988499,1712674268749,-842.95,0.00020367,2]
[321988500,1712674268764,-500.0,0.00020367,2]
[321988501,1712674268774,-500.0,0.00020367,2]
[321988502,1712674268791,-617.66,0.00020367,2]
[321988503,1712674268801,-897.73,0.00020367,2]
[321988504,1712674268816,-700.34,0.00020367,2]
[321988505,1712674268826,-805.62,0.00020367,2]
[321988506,1712674268838,-639.45,0.00020367,2]
[321988507,1712674268848,-500.0,0.00020367,2]
[321988508,1712674268858,-274.90503473,0.00020367,2]
[321988509,1712674268868,-500.0,0.00020367,2]
[321988510,1712674268877,-833.8,0.00020367,2]
[321988511,1712674268893,-969.1,0.00020367,2]
[321988512,1712674268903,-500.0,0.00020367,2]
[321988513,1712674268915,-916.08,0.00020367,2]
[321988514,1712674268925,-500.0,0.00020367,2]
[321988515,1712674268939,-672.83,0.00020367,2]
[321988516,1712674268950,-624.08,0.00020367,2]
[321988517,1712674268959,-808.8,0.00020367,2]
[321988518,1712674268969,-500.0,0.00020367,2]
[321988519,1712674268981,-692.85,0.00020367,2]
[321988520,1712674268996,-500.0,0.00020367,2]
[321988521,1712674269006,-782.58,0.00020367,2]
[321988522,1712674269015,-712.41,0.00020367,2]
[321988523,1712674269025,-500.0,0.00020367,2]
[321988524,1712674269035,-500.0,0.00020367,2]
[321988525,1712674269045,-722.61,0.00020367,2]
[321988526,1712674269054,-632.47,0.00020367,2]
[321988527,1712674269064,-593.62,0.00020367,2]
[321988528,1712674269074,-500.0,0.00020367,2]
[321988529,1712674269083,-1124.6,0.00020367,2]
[321988530,1712674269093,-1750.14,0.00020367,2]
[321988531,1712674269102,-695.99,0.00020367,2]
[321988532,1712674269112,-500.0,0.00020367,2]
[321988533,1712674269121,-500.0,0.00020367,2]
[321988534,1712674269131,-592.75,0.00020367,2]
[321988535,1712674269141,-1070.69,0.00020367,2]
[321988536,1712674269150,-500.0,0.00020367,2]
[321988537,1712674269160,-1233.11,0.00020367,2]
[321988538,1712674269169,-798.38,0.00020367,2]
[321988539,1712674269184,-2517.11,0.00020367,2]
[321988540,1712674269194,-500.0,0.00020367,2]
[321988541,1712674269213,-358.13,0.00020367,2]
[321988542,1712674269226,-881.79,0.00020367,2]
[321988543,1712674269241,-967.92,0.00020367,2]
[321988544,1712674269260,-1542.87,0.00020367,2]
[321988545,1712674269270,-4055.53,0.00020367,2]
[321988546,1712674269281,-636.28,0.00020367,2]
[321988547,1712674269292,-1278.07,0.00020367,2]
[321988548,1712674269303,-1650.72,0.00020367,2]
[321988549,1712674269314,-759.09,0.00020367,2]
[321988550,1712674269325,-718.47,0.00020367,2]
[321988551,1712674269336,-922.43,0.00020367,2]
[321988552,1712674269349,-789.1,0.00020367,2]
[321988553,1712674269360,-2452.78,0.00020367,2]
[321988554,1712674269370,-1037.91,0.00020367,2]
[321988555,1712674269380,-2600.08,0.00020367,2]
[321988556,1712674269391,-6200.47,0.00020367,2]
[321988557,1712674269402,-1423.9,0.00020367,2]
[321988558,1712674269413,-1921.2,0.00020367,2]
[321988559,1712674269423,-2792.91,0.00020367,2]
[321988560,1712674269432,-4077.97,0.00020367,2]
[321988561,1712674269442,-5797.14,0.00020367,2]
[321988562,1712674269452,-5906.39,0.00020367,2]
[321988563,1712674269463,-1079.17,0.00020367,2]
[321988564,1712674269473,-500.0,0.00020367,2]
[321988565,1712674269487,-3361.33,0.00020367,2]
[321988566,1712674269498,-1284.77,0.00020367,2]
[321988567,1712674269508,-5886.08,0.00020367,2]
[321988568,1712674269518,-724.57,0.00020367,2]
[321988569,1712674269529,-8496.55,0.00020367,2]
[321988570,1712674269540,-3430.69,0.00020367,2]
[321988571,1712674269551,-1816.11,0.00020367,2]
[321988572,1712674269561,-1112.14,0.00020367,2]
[321988573,1712674269573,-5799.7,0.00020367,2]
[321988574,1712674269584,-500.0,0.00020367,2]
[321988575,1712674269595,-3537.97,0.00020367,2]
[321988576,1712674269605,-3016.08,0.00020367,2]
[321988577,1712674269616,-500.0,0.00020367,2]
[321988578,1712674269627,-2166.03,0.00020367,2]
[321988579,1712674269647,-2170.75,0.00020367,2]
[321988580,1712674269664,-2793.14,0.00020367,2]
[321988581,1712674269674,-3131.87,0.00020367,2]
[321988582,1712674269685,-500.0,0.00020367,2]
[321988583,1712674269706,-2135.84,0.00020367,2]
[321988584,1712674269717,-12126.76,0.00020367,2]
[321988585,1712674269728,-508.37,0.00020367,2]
[321988586,1712674269742,-9268.95,0.00020367,2]
[321988587,1712674269758,-3108.86,0.00020367,2]
[321988588,1712674269772,-962.18,0.00020367,2]
[321988589,1712674269785,-1005.23,0.00020367,2]
[321988590,1712674269798,-28103.17,0.00020367,2]
[321988591,1712674269810,-500.0,0.00020367,2]
[321988592,1712674269820,-2891.01,0.00020367,2]
[321988593,1712674269832,-968.9,0.00020367,2]
[321988594,1712674269844,-1530.15,0.00020367,2]
[321988595,1712674269854,-1170.72,0.00020367,2]
[321988596,1712674269865,-731.76,0.00020367,2]
[321988597,1712674269874,-739.24,0.00020367,2]
[321988598,1712674269885,-1130.64,0.00020367,2]
[321988599,1712674269895,-1001.01,0.00020367,2]
[321988600,1712674269908,-500.0,0.00020367,2]
[321988601,1712674269921,-500.0,0.00020368,2]
[321988602,1712674269937,-500.0,0.00020368,2]
[321988603,1712674269947,-500.0,0.00020368,2]
[321988604,1712674269960,-500.0,0.00020368,2]
[321988605,1712674269990,-500.0,0.00020368,2]
[321988606,1712674270009,-500.0,0.00020368,2]
[321988607,1712674270026,-500.0,0.00020368,2]
[321988608,1712674270041,-528.02,0.00020368,2]
[321988609,1712674270052,-559.25,0.00020368,2]
[321988610,1712674270063,-500.0,0.00020368,2]
[321988611,1712674270087,-702.59,0.00020368,2]
[321988612,1712674270099,-500.0,0.00020368,2]
[321988613,1712674270110,-556.85,0.00020368,2]
[321988614,1712674270121,-500.0,0.00020368,2]
[321988615,1712674270132,-500.0,0.00020368,2]
[321988616,1712674270142,-500.0,0.00020368,2]
[321988617,1712674270152,-500.0,0.00020368,2]
[321988618,1712674270163,-500.0,0.00020368,2]
[321988619,1712674270173,-500.0,0.00020368,2]
[321988620,1712674270183,-500.0,0.00020368,2]
[321988621,1712674270193,-581.29,0.00020368,2]
[321988622,1712674270203,-500.0,0.00020368,2]
[321988623,1712674270213,-500.0,0.00020368,2]
[321988624,1712674270223,-500.0,0.00020368,2]
[321988625,1712674270236,-500.65,0.00020368,2]
[321988626,1712674270245,-277.13862956,0.00020368,2]
[321988627,1712674270255,-500.0,0.00020368,2]
[321988628,1712674270265,-502.57,0.00020368,2]
[321988629,1712674270274,-500.0,0.00020368,2]
[321988630,1712674270283,-665.51,0.00020368,2]
[321988631,1712674270294,-839.35,0.00020368,2]
[321988632,1712674270303,-649.16125311,0.00020368,2]
[321988633,1712674270314,-500.0,0.00020368,2]
[321988634,1712674270324,-500.0,0.00020368,2]
[321988635,1712674270334,-500.0,0.00020368,2]
[321988636,1712674270344,-500.0,0.00020368,2]
[321988637,1712674270354,-500.0,0.00020368,2]
[321988638,1712674270364,-500.0,0.00020368,2]
[321988639,1712674270376,-500.0,0.00020368,2]
[321988640,1712674270386,-768.05,0.00020368,2]
[321988641,1712674270396,-500.0,0.00020368,2]
[321988642,1712674270408,-500.0,0.00020368,2]
[321988643,1712674270419,-500.0,0.00020368,2]
[321988644,1712674270429,-587.68,0.00020368,2]
[321988645,1712674270440,-500.0,0.00020368,2]
[321988646,1712674270450,-727.92,0.00020368,2]
[321988647,1712674270461,-500.0,0.00020368,2]
[321988648,1712674270472,-500.0,0.00020368,2]
[321988649,1712674270487,-500.0,0.00020368,2]
[321988650,1712674270501,-620.22,0.00020368,2]
[321988651,1712674270513,-500.0,0.00020368,2]
[321988652,1712674270526,-500.0,0.00020368,2]
[321988653,1712674270538,-520.31,0.00020368,2]
[321988654,1712674270550,-500.0,0.00020368,2]
[321988655,1712674270561,-500.0,0.00020368,2]
[321988656,1712674270572,-500.0,0.00020368,2]
[321988657,1712674270584,-550.68,0.00020368,2]
[321988658,1712674270595,-1218.05,0.00020368,2]
[321988659,1712674270607,-500.0,0.00020368,2]
[321988660,1712674270618,-500.0,0.00020368,2]
[321988661,1712674270628,-500.0,0.00020368,2]
[321988662,1712674270640,-500.0,0.00020368,2]
[321988663,1712674270650,-500.0,0.00020368,2]
[321988664,1712674270661,-553.65,0.00020368,2]
[321988665,1712674270672,-750.58,0.00020368,2]
[321988666,1712674270682,-500.0,0.00020368,2]
[321988667,1712674270694,-733.34,0.00020368,2]
[321988668,1712674270705,-500.0,0.00020368,2]
[321988669,1712674270715,-507.35,0.00020368,2]
[321988670,1712674270726,-500.0,0.00020368,2]
[321988671,1712674270742,-967.27,0.00020368,2]
[321988672,1712674270752,-306.28079035,0.00020368,2]
[321988673,1712674270765,-547.31,0.00020368,2]
[321988674,1712674270775,-711.65,0.00020368,2]
[321988675,1712674270786,-539.29,0.00020368,2]
[321988676,1712674270796,-500.0,0.00020368,2]
[321988677,1712674270807,-783.39,0.00020368,2]
[321988678,1712674270818,-500.0,0.00020368,2]
[321988679,1712674270828,-500.0,0.00020368,2]
[321988680,1712674270838,-500.0,0.00020368,2]
[321988681,1712674270848,-500.0,0.00020368,2]
[321988682,1712674270858,-500.0,0.00020368,2]
[321988683,1712674270867,-500.0,0.00020368,2]
[321988684,1712674270877,-678.2,0.00020368,2]
[321988685,1712674270886,-337.75301318,0.00020368,2]
[321988686,1712674270897,-500.0,0.00020368,2]
[321988687,1712674270906,-703.55,0.00020368,2]
[321988688,1712674270916,-552.05,0.00020368,2]
[321988689,1712674270926,-500.0,0.00020368,2]
[321988690,1712674270938,-500.0,0.00020368,2]
[321988691,1712674270948,-500.0,0.00020368,2]
[321988692,1712674270957,-809.79,0.00020368,2]
[321988693,1712674270968,-680.22,0.00020368,2]
[321988694,1712674270979,-653.3,0.00020368,2]
[321988695,1712674270994,-500.0,0.00020368,2]
[321988696,1712674271004,-500.0,0.00020368,2]
[321988697,1712674271014,-507.29,0.00020368,2]
[321988698,1712674271024,-500.0,0.00020368,2]
[321988699,1712674271034,-903.8,0.00020368,2]
[321988700,1712674271044,-1568.58,0.00020368,2]
[321988701,1712674271053,-649.28,0.00020368,2]
[321988702,1712674271062,-547.5,0.00020368,2]
[321988703,1712674271072,-500.0,0.00020368,2]
[321988704,1712674271081,-500.0,0.00020368,2]
[321988705,1712674271091,-500.0,0.00020368,2]
[321988706,1712674271102,-500.0,0.00020368,2]
[321988707,1712674271111,-1047.68,0.00020368,2]
[321988708,1712674271121,-500.0,0.00020368,2]
[321988709,1712674271131,-1838.26,0.00020368,2]
[321988710,1712674271141,-500.0,0.00020368,2]
[321988711,1712674271151,-2093.46,0.00020368,2]
[321988712,1712674271161,-665.46,0.00020368,2]
[321988713,1712674271171,-467.97778879,0.00020368,2]
[321988714,1712674271181,-517.31,0.00020368,2]
[321988715,1712674271191,-2147.22,0.00020368,2]
[321988716,1712674271201,-500.0,0.00020368,2]
[321988717,1712674271211,-500.0,0.00020368,2]
[321988718,1712674271221,-2080.77,0.00020368,2]
[321988719,1712674271235,-500.0,0.00020368,2]
[321988720,1712674271246,-611.62,0.00020368,2]
[321988721,1712674271256,-1190.95,0.00020368,2]
[321988722,1712674271266,-642.96,0.00020368,2]
[321988723,1712674271276,-500.0,0.00020368,2]
[321988724,1712674271286,-3370.62,0.00020368,2]
[321988725,1712674271295,-788.21,0.00020368,2]
[321988726,1712674271305,-2491.81,0.00020368,2]
[321988727,1712674271316,-637.6,0.00020368,2]
[321988728,1712674271326,-500.0,0.00020368,2]
[321988729,1712674271336,-1120.41,0.00020368,2]
[321988730,1712674271346,-28284.14,0.00020368,2]
[321988731,1712674271421,-500.0,0.00020368,2]
[321988732,1712674271431,-1040.0,0.00020368,2]
[321988733,1712674271441,-500.0,0.00020368,2]
[321988734,1712674271450,-690.25,0.00020368,2]
[321988735,1712674271460,-500.0,0.00020368,2]
[321988736,1712674271470,-653.93,0.00020368,2]
[321988737,1712674271479,-6681.82,0.00020368,2]
[321988738,1712674271495,-500.0,0.00020368,2]
[321988739,1712674271505,-825.82,0.00020368,2]
[321988740,1712674271514,-500.0,0.00020368,2]
[321988741,1712674271524,-500.0,0.00020368,2]
[321988742,1712674271533,-500.0,0.00020368,2]
[321988743,1712674271543,-500.0,0.00020368,2]
[321988744,1712674271553,-500.0,0.00020368,2]
[321988745,1712674271563,-522.52,0.00020368,2]
[321988746,1712674271573,-500.0,0.00020368,2]
[321988747,1712674271584,-1336.33,0.00020368,2]
[321988748,1712674271594,-500.0,0.00020368,2]
[321988749,1712674271604,-2456.8,0.00020368,2]
[321988750,1712674271615,-500.0,0.00020368,2]
[321988751,1712674271625,-591.45,0.00020368,2]
[321988752,1712674271636,-500.0,0.00020368,2]
[321988753,1712674271646,-750.33,0.00020368,2]
[321988754,1712674271656,-25335.88,0.00020368,2]
[321988755,1712674271667,-500.0,0.00020368,2]
[321988756,1712674271678,-5449.32,0.00020368,2]
[321988757,1712674271689,-500.0,0.00020368,2]
[321988758,1712674271700,-1941.86,0.00020368,2]
[321988759,1712674271711,-1188.17,0.00020368,2]
[321988760,1712674271723,-671.65,0.00020368,2]
[321988761,1712674271736,-500.0,0.00020368,2]
[321988762,1712674271747,-532.4,0.00020368,2]
[321988763,1712674271757,-1567.94,0.00020368,2]
[321988764,1712674271766,-1504.3,0.00020368,2]
[321988765,1712674271776,-500.0,0.00020368,2]
[321988766,1712674271786,-318.49980216,0.00020368,2]
[321988767,1712674271796,-2247.8,0.00020368,2]
[321988768,1712674271806,-386.94,0.00020368,2]
[321988769,1712674271815,-845.45,0.00020368,2]
[321988770,1712674271823,-2290.94,0.00020368,2]
[321988771,1712674271833,-500.0,0.00020368,2]
[321988772,1712674271843,-266.45726574,0.00020368,2]
[321988773,1712674271852,-1058.37,0.00020368,2]
[321988774,1712674271861,-5394.8,0.00020368,2]
[321988775,1712674271872,-739.57,0.00020368,2]
[321988776,1712674271881,-596.77,0.00020368,2]
[321988777,1712674271891,-796.64,0.00020368,2]
[321988778,1712674271900,-533.26,0.00020368,2]
[321988779,1712674271909,-1159.74,0.00020368,2]
[321988780,1712674271922,-674.14,0.00020368,2]
[321988781,1712674271933,-500.0,0.00020368,2]
[321988782,1712674271947,-955.98,0.00020368,2]
[321988783,1712674271957,-662.17,0.00020368,2]
[321988784,1712674271967,-500.0,0.00020368,2]
[321988785,1712674271979,-500.0,0.00020368,2]
[321988786,1712674271993,-42744.42176779,0.00020385,2]
[321988787,1712674272004,-1762.27300257,0.00020468,2]
[321988788,1712674272014,-2064.62,0.00020468,2]
[321988789,1712674272026,-1044.56,0.00020468,2]
[321988790,1712674272036,-500.0,0.00020468,2]
[321988791,1712674272046,-2161.49,0.00020468,2]
[321988792,1712674272056,-3099.5,0.00020468,2]
[321988793,1712674272066,-1872.56,0.00020468,2]
[321988794,1712674272077,-2988.29,0.00020468,2]
[321988795,1712674272087,-1990.94,0.00020468,2]
[321988796,1712674272096,-1319.66,0.00020468,2]
[321988797,1712674272106,-8699.85,0.00020468,2]
[321988798,1712674272115,-1796.89,0.00020468,2]
[321988799,1712674272126,-1485.3,0.00020468,2]
[321988800,1712674272135,-2374.35,0.00020468,2]
[321988801,1712674272145,-1678.5,0.00020468,2]
[321988802,1712674272155,-2478.4,0.00020468,2]
[321988803,1712674272165,-2388.46,0.00020468,2]
[321988804,1712674272175,-500.0,0.00020469,2]
[321988805,1712674272184,-500.0,0.00020469,2]
[321988806,1712674272194,-500.0,0.00020469,2]
[321988807,1712674272204,-500.0,0.00020469,2]
[321988808,1712674272213,-500.0,0.00020469,2]
[321988809,1712674272224,-500.0,0.00020469,2]
[321988810,1712674272237,-546.15,0.00020469,2]
[321988811,1712674272248,-567.87865484,0.00020469,2]
[321988812,1712674272258,-500.0,0.00020469,2]
[321988813,1712674272268,-500.0,0.00020469,2]
[321988814,1712674272278,-500.0,0.00020469,2]
[321988815,1712674272288,-500.0,0.00020469,2]
[321988816,1712674272298,-500.0,0.00020469,2]
[321988817,1712674272309,-500.0,0.00020469,2]
[321988818,1712674272319,-867.67,0.00020469,2]
[321988819,1712674272329,-500.0,0.00020469,2]
[321988820,1712674272339,-500.0,0.00020469,2]
[321988821,1712674272348,-500.0,0.00020469,2]
[321988822,1712674272358,-693.89,0.00020469,2]
[321988823,1712674272368,-500.0,0.00020469,2]
[321988824,1712674272377,-500.0,0.00020469,2]
[321988825,1712674272388,-1377.78,0.00020469,2]
[321988826,1712674272399,-500.0,0.00020469,2]
[321988827,1712674272409,-500.0,0.00020469,2]
[321988828,1712674272419,-500.0,0.00020469,2]
[321988829,1712674272429,-996.33,0.00020469,2]
[321988830,1712674272439,-1242.33,0.00020469,2]
[321988831,1712674272449,-633.54,0.00020469,2]
[321988832,1712674272458,-500.0,0.00020469,2]
[321988833,1712674272468,-995.86,0.00020469,2]
[321988834,1712674272478,-677.51,0.00020469,2]
[321988835,1712674272491,-968.13,0.00020469,2]
[321988836,1712674272501,-500.0,0.00020469,2]
[321988837,1712674272511,-722.49,0.00020469,2]
[321988838,1712674272521,-929.29,0.00020469,2]
[321988839,1712674272531,-996.3,0.00020469,2]
[321988840,1712674272541,-1496.23,0.00020469,2]
[321988841,1712674272552,-500.0,0.00020469,2]
[321988842,1712674272561,-385.26679421,0.00020469,2]
[321988843,1712674272571,-526.7,0.00020469,2]
[321988844,1712674272581,-723.42,0.00020469,2]
[321988845,1712674272591,-755.38,0.00020469,2]
[321988846,1712674272601,-500.0,0.00020469,2]
[321988847,1712674272611,-846.23,0.00020469,2]
[321988848,1712674272621,-1469.96,0.00020469,2]
[321988849,1712674272631,-620.59,0.00020469,2]
[321988850,1712674272641,-912.19,0.00020469,2]
[321988851,1712674272651,-655.82,0.00020469,2]
[321988852,1712674272661,-609.59,0.00020469,2]
[321988853,1712674272671,-838.95,0.00020469,2]
[321988854,1712674272681,-835.18,0.00020469,2]
[321988855,1712674272690,-740.5,0.00020469,2]
[321988856,1712674272700,-778.86,0.00020469,2]
[321988857,1712674272710,-522.35,0.00020469,2]
[321988858,1712674272720,-939.82,0.00020469,2]
[321988859,1712674272730,-1432.79,0.00020469,2]
[321988860,1712674272746,-500.0,0.00020469,2]
[321988861,1712674272755,-986.13,0.00020469,2]
[321988862,1712674272765,-819.33,0.00020469,2]
[321988863,1712674272774,-511.14,0.00020469,2]
[321988864,1712674272784,-1246.15,0.00020469,2]
[321988865,1712674272794,-500.0,0.00020469,2]
[321988866,1712674272804,-1047.27,0.00020469,2]
[321988867,1712674272814,-500.0,0.00020469,2]
[321988868,1712674272824,-744.01,0.00020469,2]
[321988869,1712674272834,-500.0,0.00020469,2]
[321988870,1712674272844,-549.49,0.00020469,2]